bitfinex-derivatives/quotes_ETHF0:USTF0_20250308
["timestamp","ask_amount","ask_price","bid_price","bid_amount"]
[1741471446875,1.1382,2217.5,2217.2,9.03237409]
[1741471447072,2.1819,2217.5,2217.1,9.03237409]
[1741471447369,2.1819,2217.5,2217.1,9.68837409]
[1741471447577,2.1819,2217.5,2217.2,9.03237409]
[1741471448069,2.1819,2217.5,2217.3,9.03237409]
[1741471448269,2.1819,2217.5,2217.3,3.2078]
[1741471448570,2.1819,2217.5,2217.4,9.03237409]
[1741471448873,2.1819,2217.5,2217.4,10.16667409]
[1741471453069,2.1819,2217.5,2217.4,18.16667409]
[1741471456984,2.1819,2217.5,2217.4,9.1343]
[1741471457281,2.1819,2217.5,2217.4,18.16667409]
[1741471458079,2.1819,2217.5,2217.4,10.16667409]
[1741471458280,1.929,2217.8,2217.4,10.16667409]
[1741471458485,2.1634,2217.7,2217.5,9.03237409]
[1741471458675,2.1634,2217.7,2217.6,9.03237409]
[1741471458872,2.1634,2217.7,2217.5,9.03237409]
[1741471459380,1.929,2217.8,2217.6,9.03237409]
[1741471459884,1.929,2217.8,2217.7,9.03237409]
[1741471460085,1.929,2217.8,2217.6,9.03237409]
[1741471460585,1.929,2217.8,2217.7,9.03237409]
[1741471461979,5.168,2217.9,2217.7,9.03237409]
[1741471462188,5.168,2217.9,2217.8,9.03237409]
[1741471462491,5.168,2217.9,2217.7,9.03237409]
[1741471462985,5.168,2217.9,2217.8,9.03237409]
[1741471463182,5.168,2217.9,2217.7,9.03237409]
[1741471463578,5.168,2217.9,2217.8,9.03237409]
[1741471463778,5.168,2217.9,2217.7,9.03237409]
[1741471464284,5.168,2217.9,2217.8,9.03237409]
[1741471464474,5.168,2217.9,2217.7,9.03237409]
[1741471464878,5.168,2217.9,2217.8,9.03237409]
[1741471465084,5.168,2217.9,2217.7,9.03237409]
[1741471465482,5.168,2217.9,2217.8,9.03237409]
[1741471465680,8.3758,2217.9,2217.8,9.03237409]
[1741471467090,5.168,2217.9,2217.8,9.03237409]
[1741471471793,4.0865,2217.9,2217.8,9.03237409]
[1741471472492,2.1575,2217.9,2217.8,9.03237409]
[1741471475899,4.0865,2217.9,2217.8,9.03237409]
[1741471476194,6.5678,2218.6,2217.8,10.15187409]
[1741471476393,3.2088,2218.2,2217.9,9.03237409]
[1741471476697,3.2088,2218.2,2217.9,9.03914442]
[1741471476897,3.2088,2218.2,2218.0,9.03237409]
[1741471477993,3.2088,2218.2,2218.1,9.03237409]
[1741471478296,3.2088,2218.2,2218.0,9.03237409]
[1741471478688,3.2088,2218.2,2218.1,9.03237409]
[1741471478889,3.2088,2218.2,2218.0,9.03237409]
[1741471479289,3.2088,2218.2,2218.1,9.03237409]
[1741471479485,3.2088,2218.2,2218.0,9.03237409]
[1741471479896,3.2088,2218.2,2218.1,9.03237409]
[1741471480097,3.2088,2218.2,2218.0,9.03237409]
[1741471480700,3.2088,2218.2,2218.1,9.03237409]
[1741471481002,3.2088,2218.2,2218.0,9.03237409]
[1741471481198,2.1767,2218.2,2218.0,9.03237409]
[1741471481400,2.1767,2218.2,2218.1,9.03237409]
[1741471481701,2.1767,2218.2,2218.0,9.03237409]
[1741471482198,2.1767,2218.2,2218.1,9.03237409]
[1741471482400,2.1767,2218.2,2218.0,9.03237409]
[1741471482798,4.1057,2218.2,2218.1,9.03237409]
[1741471483502,1.928,2218.3,2218.1,12.24017409]
[1741471483708,1.928,2218.3,2218.2,10.08277409]
[1741471484800,1.928,2218.3,2218.2,11.13257409]
[1741471488802,1.928,2218.3,2218.2,10.08277409]
[1741471490805,1.928,2218.3,2218.2,18.08277409]
[1741471493807,1.928,2218.3,2218.2,9.0504]
[1741471494013,1.928,2218.3,2218.2,18.08277409]
[1741471504707,1.928,2218.3,2218.2,9.0504]
[1741471504911,1.928,2218.3,2218.2,18.08277409]
[1741471505815,1.1154,2218.5,2218.2,18.08277409]
[1741471506121,1.928,2218.5,2218.3,9.03237409]
[1741471506413,1.928,2218.5,2218.4,1.4663]
[1741471506617,8.86367371,2218.7,2218.4,10.49867409]
[1741471506807,8.86367371,2218.7,2218.5,9.03237409]
[1741471507011,6.93567371,2218.7,2218.6,9.03237409]
[1741471507214,6.93567371,2218.7,2218.5,9.03237409]
[1741471507215,8.86367371,2218.7,2218.5,9.03237409]
[1741471507618,8.86367371,2218.7,2218.6,9.03237409]
[1741471507818,8.86367371,2218.7,2218.5,9.03237409]
[1741471508019,8.86367371,2218.7,2218.6,1.3651]
[1741471508224,8.86367371,2218.7,2218.6,10.39747409]
[1741471508919,1.928,2218.7,2218.6,10.39747409]
[1741471509221,2.7702,2218.8,2218.6,10.39747409]
[1741471509222,5.1358,2218.9,2218.6,10.39747409]
[1741471509421,5.1358,2218.9,2218.7,9.03237409]
[1741471509817,5.1358,2218.9,2218.8,9.03237409]
[1741471510024,5.1358,2218.9,2218.7,9.03237409]
[1741471510522,5.1358,2218.9,2218.8,9.03237409]
[1741471510723,5.1358,2218.9,2218.7,9.03237409]
[1741471511120,5.1358,2218.9,2218.8,9.03237409]
[1741471511321,5.1358,2218.9,2218.7,9.03237409]
[1741471511722,5.1358,2218.9,2218.8,9.03237409]
[1741471511922,5.1358,2218.9,2218.7,9.03237409]
[1741471512326,5.1358,2218.9,2218.8,9.03237409]
[1741471512523,5.1358,2218.9,2218.7,9.03237409]
[1741471512928,5.1358,2218.9,2218.8,9.03237409]
[1741471513220,5.1358,2218.9,2218.6,1.3651]
[1741471513221,5.1358,2218.9,2218.7,9.03237409]
[1741471513621,5.1358,2218.9,2218.8,9.03237409]
[1741471513926,5.1358,2218.9,2218.7,9.03237409]
[1741471514323,3.2078,2219.6,2218.8,12.24017409]
[1741471514626,4.7767,2219.4,2218.9,2.8296]
[1741471514925,4.7767,2219.4,2219.0,1.3936]
[1741471515125,4.7767,2219.4,2219.0,10.42597409]
[1741471515321,1.4451,2219.4,2219.1,9.03237409]
[1741471515528,3.3731,2219.4,2219.1,12.24017409]
[1741471515727,3.3731,2219.4,2219.2,9.03237409]
[1741471516027,1.928,2219.4,2219.2,9.03237409]
[1741471516327,1.928,2219.4,2219.3,9.03237409]
[1741471516530,1.928,2219.4,2219.2,9.03237409]
[1741471517031,1.928,2219.4,2219.3,9.03237409]
[1741471517232,1.928,2219.4,2219.2,9.03237409]
[1741471517727,1.928,2219.4,2219.3,9.03237409]
[1741471517931,1.928,2219.4,2219.2,9.03237409]
[1741471518433,1.928,2219.4,2219.3,9.03237409]
[1741471518626,1.928,2219.4,2219.2,9.03237409]
[1741471519026,1.928,2219.4,2219.3,9.03237409]
[1741471519233,1.928,2219.4,2219.2,10.42627409]
[1741471519628,1.928,2219.4,2219.3,9.03237409]
[1741471520327,1.4572,2219.5,2219.3,9.03237409]
[1741471520540,1.4572,2219.5,2219.4,9.03237409]
[1741471520841,1.4572,2219.5,2219.2,9.03237409]
[1741471521037,1.4606,2219.4,2219.2,9.03237409]
[1741471521239,1.4606,2219.4,2219.3,9.03237409]
[1741471521438,1.4606,2219.4,2219.2,9.03237409]
[1741471521833,1.4606,2219.4,2219.3,9.03237409]
[1741471522038,1.4606,2219.4,2219.2,9.03237409]
[1741471522446,1.4606,2219.4,2219.3,9.03237409]
[1741471522649,1.4606,2219.4,2219.2,9.03237409]
[1741471523046,1.4606,2219.4,2219.3,9.03237409]
[1741471523547,1.4606,2219.4,2219.3,17.03237409]
[1741471525247,1.4606,2219.4,2219.3,8.0]
[1741471525441,1.4606,2219.4,2219.3,17.03237409]
[1741471526652,1.4606,2219.4,2219.1,0.4414]
[1741471526861,4.7164,2219.3,2219.1,0.4414]
[1741471527049,1.927,2219.2,2219.1,0.4414]
[1741471527344,3.3648,2219.2,2219.1,0.4414]
[1741471528037,3.3648,2219.2,2218.9,0.00677033]
[1741471528242,3.2078,2219.0,2218.9,0.00677033]
[1741471529844,7.5868,2219.0,2217.9,3.2078]
[1741471530047,3.2078,2218.4,2218.0,9.03237409]
[1741471530241,3.3621,2218.3,2218.0,9.03237409]
[1741471530444,3.3621,2218.3,2218.1,9.03237409]
[1741471531250,1.5437,2218.2,2218.1,9.03237409]
[1741471531457,1.5437,2218.2,2218.0,0.00677033]
[1741471532158,1.5437,2218.2,2218.1,9.03237409]
[1741471532350,1.927,2218.2,2218.1,9.03237409]
[1741471532552,1.927,2218.3,2218.1,10.51107409]
[1741471532744,1.927,2218.3,2218.2,9.03237409]
[1741471535151,0.00677033,2218.4,2218.2,12.02857409]
[1741471535353,1.927,2218.7,2218.3,12.24017409]
[1741471535553,1.927,2218.7,2218.6,3.2078]
[1741471536056,1.927,2218.7,2218.6,12.24017409]
[1741471536445,1.927,2218.7,2218.6,9.03237409]
[1741471541153,1.927,2218.7,2218.3,3.2078]
[1741471541358,2.8721,2218.6,2218.4,9.03237409]
[1741471541664,4.3959,2218.6,2218.1,9.03237409]
[1741471542155,4.3959,2218.6,2218.2,9.03237409]
[1741471542557,3.2078,2218.5,2218.2,9.03237409]
[1741471542857,3.2078,2218.5,2218.0,0.00677033]
[1741471543156,3.2078,2218.5,2218.1,9.03237409]
[1741471546665,3.5868,2218.5,2218.1,9.03237409]
[1741471546877,3.5868,2218.5,2218.0,0.00677033]
[1741471547161,3.5868,2218.5,2218.0,9.03914442]
[1741471550662,3.2078,2218.2,2218.0,9.03914442]
[1741471550967,4.913,2218.1,2218.0,0.00677033]
[1741471551267,6.3247,2218.1,2218.0,0.00677033]
[1741471552062,4.3967,2218.1,2218.0,0.00677033]
[1741471552263,6.3247,2218.1,2218.0,0.00677033]
[1741471560471,6.7037,2218.1,2218.0,0.00677033]
[1741471561779,10.7037,2218.1,2218.0,0.00677033]
[1741471561988,6.7037,2218.1,2218.0,0.00315441]
[1741471563074,3.364,2218.1,2218.0,9.0355285]
[1741471563377,0.00362077,2218.3,2218.0,9.0355285]
[1741471563576,1.928,2218.2,2218.1,10.48857409]
[1741471563773,0.00362077,2218.3,2218.1,13.69637409]
[1741471563976,1.93462077,2218.3,2218.2,11.82327409]
[1741471564773,0.00362077,2218.3,2218.2,11.82327409]
[1741471564983,1.93462077,2218.3,2218.2,11.82327409]
[1741471566375,1.93362077,2218.3,2218.2,11.82327409]
[1741471567282,1.93362077,2218.3,2218.2,10.46257409]
[1741471567979,1.93362077,2218.3,2218.2,15.24800376]
[1741471569582,1.93362077,2218.3,2218.2,10.46257409]
[1741471570982,0.00362077,2218.3,2218.2,10.46257409]
[1741471573677,1.928,2218.5,2218.2,14.46257409]
[1741471573880,1.928,2218.5,2218.4,3.2078]
[1741471574387,1.928,2218.5,2218.4,12.24017409]
[1741471575182,9.17374068,2219.2,2218.4,16.24017409]
[1741471575386,2.861,2219.3,2218.2,1.4302]
[1741471575387,1.928,2219.1,2218.9,3.2078]
[1741471575679,1.929,2219.1,2219.0,4.2761]
[1741471575987,1.929,2219.1,2219.0,13.30847409]
[1741471576977,1.929,2219.1,2219.0,4.2761]
[1741471577180,1.929,2219.1,2219.0,13.30847409]
[1741471580282,1.927,2219.2,2219.0,13.30847409]
[1741471580487,1.927,2219.2,2219.1,9.03237409]
[1741471585986,4.2995,2219.2,2219.1,9.03237409]
[1741471597299,2.3725,2219.2,2219.1,9.03237409]
[1741471597498,4.2995,2219.2,2219.1,9.03237409]
[1741471599996,4.2995,2219.2,2218.6,3.2078]
[1741471600196,4.5517,2219.1,2218.7,9.03237409]
[1741471600606,4.5517,2219.1,2218.8,9.03237409]
[1741471600798,4.5517,2219.1,2218.7,9.03237409]
[1741471601201,4.5517,2219.1,2218.8,9.03237409]
[1741471601415,4.5517,2219.1,2218.7,9.03237409]
[1741471601905,4.5517,2219.1,2218.8,9.03237409]
[1741471602105,4.5517,2219.1,2218.7,9.03237409]
[1741471602499,4.5517,2219.1,2218.8,9.03237409]
[1741471602695,4.5517,2219.1,2218.7,9.03237409]
[1741471602908,4.9307,2219.1,2218.6,9.03237409]
[1741471605902,1.927,2219.0,2218.7,9.03237409]
[1741471606210,1.927,2219.0,2218.5,3.2078]
[1741471606403,1.927,2219.0,2218.6,3.4994]
[1741471606598,1.927,2219.0,2218.6,12.53177409]
[1741471606804,1.927,2219.0,2218.7,9.03237409]
[1741471607296,1.927,2219.0,2218.8,9.03237409]
[1741471607502,1.927,2219.0,2218.6,3.4994]
[1741471607503,1.927,2218.9,2218.7,9.03237409]
[1741471607906,1.927,2218.9,2218.8,9.03237409]
[1741471608210,1.927,2218.9,2218.7,9.03237409]
[1741471608602,1.927,2218.9,2218.8,9.03237409]
[1741471608809,1.927,2218.9,2218.7,9.03237409]
[1741471609410,1.927,2218.9,2218.8,9.03237409]
[1741471609608,1.927,2218.9,2218.7,9.03237409]
[1741471610110,1.927,2218.9,2218.8,9.03237409]
[1741471610305,1.927,2218.9,2218.7,9.03237409]
[1741471610813,1.927,2218.9,2218.8,9.03237409]
[1741471611111,1.927,2218.9,2218.7,9.03237409]
[1741471611505,1.927,2218.9,2218.6,5.7329]
[1741471611506,1.927,2218.9,2218.8,9.03237409]
[1741471611712,1.927,2218.9,2218.7,9.03237409]
[1741471612212,2.3725,2219.2,2218.8,9.03237409]
[1741471612503,1.927,2219.1,2218.7,9.03237409]
[1741471612905,1.927,2219.1,2218.8,9.03237409]
[1741471613104,1.927,2219.1,2218.7,9.03237409]
[1741471613511,1.927,2219.1,2218.8,9.03237409]
[1741471613706,1.2311,2219.4,2218.9,3.2078]
[1741471613910,1.927,2219.3,2219.0,1.4078]
[1741471614113,1.927,2219.3,2219.0,10.44017409]
[1741471614306,1.927,2219.3,2219.1,9.03237409]
[1741471614506,1.927,2219.3,2219.2,9.03237409]
[1741471614707,1.927,2219.3,2219.1,9.03237409]
[1741471615209,1.927,2219.3,2219.2,9.03237409]
[1741471615513,1.927,2219.3,2219.1,9.03237409]
[1741471615910,3.5868,2219.2,2218.6,3.2078]
[1741471616212,3.5868,2219.2,2218.6,12.24017409]
[1741471616213,3.2078,2218.9,2218.6,12.24017409]
[1741471616419,3.3472,2218.8,2218.6,12.24017409]
[1741471616615,3.9979,2218.8,2218.6,12.24017409]
[1741471617518,0.70652884,2218.7,2218.6,12.24017409]
[1741471620322,0.70652884,2218.7,2218.6,9.03237409]
[1741471636647,0.70652884,2218.7,2218.2,1.3213]
[1741471636848,0.70652884,2218.7,2218.3,9.03237409]
[1741471637244,0.70652884,2218.7,2218.4,9.03237409]
[1741471637442,0.70652884,2218.7,2218.3,9.03237409]
[1741471637950,0.70652884,2218.7,2218.4,9.03237409]
[1741471638143,0.70652884,2218.7,2218.3,9.03237409]
[1741471638651,0.70652884,2218.7,2218.4,9.03237409]
[1741471638849,0.70652884,2218.7,2218.5,9.03237409]
[1741471639048,0.70652884,2218.7,2218.6,0.6815]
[1741471639348,3.2893,2218.8,2218.6,0.6815]
[1741471639551,3.2893,2218.8,2218.7,9.03237409]
[1741471641255,1.3583,2218.8,2218.7,9.03237409]
[1741471641457,0.70652884,2219.0,2218.7,9.03237409]
[1741471641754,1.927,2218.9,2218.8,9.03237409]
[1741471641954,1.927,2218.9,2218.7,9.03237409]
[1741471642450,1.927,2218.9,2218.8,9.03237409]
[1741471642645,1.927,2218.9,2218.7,9.73797409]
[1741471643053,1.927,2218.9,2218.8,9.03237409]
[1741471644155,2.06492884,2219.0,2218.8,9.03237409]
[1741471644353,1.927,2218.9,2218.8,9.03237409]
[1741471645658,2.06492884,2219.0,2218.8,9.03237409]
[1741471645848,1.927,2218.9,2218.7,0.7056]
[1741471646049,1.927,2218.9,2218.8,9.03237409]
[1741471649855,1.927,2218.9,2218.6,0.6815]
[1741471650159,2.63352884,2218.9,2218.7,6.49430677]
[1741471650761,1.927,2218.9,2218.7,3.95618437]
[1741471660066,5.1348,2218.9,2218.7,1.91716289]
[1741471661163,5.1348,2218.9,2218.7,0.8688782]
[1741471662564,5.1348,2218.9,2218.7,0.35225035]
[1741471667562,5.1348,2218.9,2218.4,0.7064]
[1741471667867,5.1348,2218.9,2218.5,0.35225035]
[1741471668061,1.927,2218.9,2218.5,0.35225035]
[1741471668262,3.2078,2218.8,2218.6,0.35225035]
[1741471668464,3.2078,2218.8,2218.5,0.35225035]
[1741471668655,0.6941,2218.7,2218.5,0.35225035]
[1741471668861,0.6607,2218.6,2218.4,0.7064]
[1741471669062,1.927,2218.5,2218.4,0.7064]
[1741471669472,1.927,2218.5,2218.4,1.05865035]
[1741471675374,1.927,2218.5,2218.4,0.7064]
[1741471675874,1.927,2218.5,2218.4,1.05865035]
[1741471691076,0.6941,2218.7,2218.4,1.05865035]
[1741471691275,21.6148,2219.1,2218.5,4.26145035]
[1741471691276,1.927,2218.6,2218.5,4.26145035]
[1741471691476,18.407,2219.1,2218.6,0.35225035]
[1741471691681,1.927,2219.0,2218.6,0.35225035]
[1741471691883,1.927,2219.0,2218.7,0.35225035]
[1741471692183,1.927,2219.0,2218.8,0.7023]
[1741471692579,1.927,2219.0,2218.9,0.35225035]
[1741471693877,18.407,2219.1,2218.9,1.01655035]
[1741471694077,18.407,2219.1,2219.0,0.35225035]
[1741471694276,20.334,2219.1,2219.0,0.35225035]
[1741471696981,20.334,2219.1,2218.9,0.6643]
[1741471697279,20.334,2219.1,2218.9,0.35225035]
[1741471698677,20.334,2219.1,2218.6,3.2078]
[1741471698888,20.334,2219.1,2218.7,0.35225035]
[1741471699090,20.334,2219.1,2218.8,0.35225035]
[1741471699287,20.334,2219.1,2218.7,0.35225035]
[1741471699482,20.334,2219.1,2218.7,1.02455035]
[1741471699688,20.334,2219.1,2218.8,0.35225035]
[1741471700089,20.334,2219.1,2218.9,0.35225035]
[1741471700387,20.334,2219.1,2218.8,0.35225035]
[1741471700786,20.334,2219.1,2218.9,0.35225035]
[1741471701089,20.334,2219.1,2218.8,0.35225035]
[1741471701488,20.334,2219.1,2218.9,3.56005035]
[1741471701684,20.334,2219.1,2218.9,3.2078]
[1741471701988,20.334,2219.1,2219.0,0.35225035]
[1741471712011,1.927,2219.1,2219.0,0.35225035]
[1741471720712,5.1348,2219.1,2218.3,3.2078]
[1741471720915,3.2078,2218.8,2218.4,0.35225035]
[1741471721111,3.258,2218.7,2218.5,0.35225035]
[1741471721308,3.9297,2218.7,2218.2,0.35225035]
[1741471721809,3.9297,2218.7,2218.3,0.35225035]
[1741471722110,3.9297,2218.7,2218.1,0.35225035]
[1741471722616,3.9297,2218.7,2218.2,0.35225035]
[1741471722810,3.2078,2218.5,2218.1,0.35225035]
[1741471723208,3.2078,2218.5,2218.2,0.35225035]
[1741471723408,3.2078,2218.5,2218.1,0.35225035]
[1741471723810,3.2078,2218.5,2218.2,0.35225035]
[1741471724009,3.2078,2218.5,2218.1,0.35225035]
[1741471724418,3.2078,2218.5,2218.0,0.00315441]
[1741471724419,3.2078,2218.5,2218.2,0.35225035]
[1741471724609,3.2078,2218.5,2218.1,0.35225035]
[1741471724816,3.2078,2218.5,2218.0,0.35540476]
[1741471725919,3.2078,2218.2,2218.0,0.35540476]
[1741471726120,4.0064,2218.1,2218.0,0.35540476]
[1741471727822,8.0064,2218.1,2217.5,3.2078]
[1741471728121,3.2078,2217.8,2216.9,3.2078]
[1741471728321,3.2078,2217.5,2216.9,3.2078]
[1741471728525,3.3743,2217.4,2216.9,3.2078]
[1741471729221,3.37745441,2217.4,2216.9,3.21457033]
[1741471731219,0.7148,2217.3,2216.9,3.21457033]
[1741471732421,0.7148,2217.3,2216.9,0.00677033]
[1741471733821,3.2078,2217.1,2216.9,0.00677033]
[1741471734024,1.927,2217.0,2216.9,0.00677033]
[1741471739925,1.927,2217.0,2216.9,3.3e-07]
[1741471742342,2.5947,2217.0,2216.9,3.3e-07]
[1741471743220,2.5947,2217.0,2216.1,0.6536]
[1741471743427,3.2078,2216.6,2216.1,0.6536]
[1741471743628,3.2691,2216.5,2216.0,3.2078]
[1741471743930,3.2078,2216.3,2215.6,1.3546]
[1741471744127,3.5868,2216.3,2215.6,1.3546]
[1741471744327,3.5868,2216.3,2215.8,0.00677033]
[1741471744328,0.00677033,2216.2,2215.8,0.00677033]
[1741471744539,1.928,2216.1,2215.8,0.00677033]
[1741471744833,3.2078,2216.0,2215.8,3.3e-07]
[1741471745037,0.658,2215.9,2215.8,3.3e-07]
[1741471752334,0.98991088,2215.9,2215.8,3.3e-07]
[1741471756537,4.98991088,2215.9,2215.8,3.3e-07]
[1741471756926,0.98991088,2215.9,2215.8,3.3e-07]
[1741471757640,8.34991088,2215.9,2215.8,3.3e-07]
[1741471758439,8.34991088,2215.9,2215.7,841.50417471]
[1741471760638,4.34991088,2215.9,2215.7,841.50417471]
[1741471761144,0.379,2215.8,2215.7,841.50417471]
[1741471762031,4.379,2215.8,2215.7,841.50417471]
[1741471762943,0.379,2215.8,2215.7,841.50417471]
[1741471765247,4.379,2215.8,2215.7,841.50417471]
[1741471765447,0.379,2215.8,2215.7,841.50417471]
[1741471765642,4.379,2215.8,2215.7,841.50417471]
[1741471767052,0.379,2215.8,2215.7,841.50417471]
[1741471771259,0.379,2215.8,2215.7,840.54447471]
[1741471772757,0.379,2215.8,2215.7,838.0026026]
[1741471772960,4.34991088,2215.9,2215.7,838.0026026]
[1741471774670,1.929,2215.8,2215.7,838.0026026]
[1741471775163,20.364,2215.8,2215.7,838.0026026]
[1741471778765,20.743,2215.8,2215.7,838.0026026]
[1741471779470,20.743,2215.8,2215.7,835.46073465]
[1741471780970,20.743,2215.8,2215.7,836.11803465]
[1741471782272,20.743,2215.8,2215.7,834.08456283]
[1741471782770,23.9508,2215.8,2215.7,834.08456283]
[1741471783368,23.9508,2215.8,2215.7,831.54270629]
[1741471783873,23.9508,2215.8,2215.7,828.43597901]
[1741471786669,20.743,2215.8,2215.7,828.43597901]
[1741471786872,23.9508,2215.8,2215.7,828.43597901]
[1741471787871,23.9508,2215.8,2215.7,829.14277901]
[1741471789472,23.9508,2215.8,2215.7,826.60094739]
[1741471789974,22.0218,2215.8,2215.7,826.60094739]
[1741471790275,23.9508,2215.8,2215.7,826.60094739]
[1741471790873,23.5718,2215.8,2215.7,826.60094739]
[1741471791673,21.6428,2215.8,2215.7,826.60094739]
[1741471791871,23.5718,2215.8,2215.7,826.60094739]
[1741471793376,23.5718,2215.8,2215.7,822.02589749]
[1741471795378,23.5718,2215.8,2215.7,820.66179749]
[1741471795575,24.9421,2215.8,2215.7,820.66179749]
[1741471795775,25.6512,2215.8,2215.7,820.66179749]
[1741471796578,26.0302,2215.8,2215.7,820.66179749]
[1741471797079,26.0302,2215.8,2215.7,817.55494048]
[1741471799483,26.0302,2215.8,2215.7,815.01293067]
[1741471801984,26.0302,2215.8,2215.7,814.10031067]
[1741471802189,26.0302,2215.8,2215.7,812.3262275]
[1741471802389,26.0302,2215.8,2215.7,805.1222275]
[1741471802685,26.0302,2215.8,2215.7,804.8363275]
[1741471803384,26.0302,2215.8,2215.7,802.80271538]
[1741471803782,26.0302,2215.8,2215.7,800.26070033]
[1741471804380,26.0302,2215.8,2215.7,799.97420034]
[1741471807789,26.0302,2215.8,2215.7,796.8672955]
[1741471808485,26.0302,2215.8,2215.7,793.76035995]
[1741471808686,26.0302,2215.8,2215.7,791.16805996]
[1741471810188,26.0302,2215.8,2215.7,788.62593961]
[1741471811283,26.0302,2215.8,2215.7,788.34063961]
[1741471812894,26.0302,2215.8,2215.7,784.11738967]
[1741471813185,30.0302,2215.8,2215.7,777.10409967]
[1741471813392,37.5162,2215.8,2215.7,758.56808496]
[1741471813788,37.5162,2215.8,2215.7,758.17068496]
[1741471814094,37.5162,2215.8,2215.7,755.62835683]
[1741471814388,37.5162,2215.8,2215.7,754.91865683]
[1741471815292,37.5162,2215.8,2215.7,748.19125684]
[1741471815687,37.5162,2215.8,2215.7,741.33955685]
[1741471816089,37.5162,2215.8,2215.7,738.23230705]
[1741471816401,37.5162,2215.8,2215.7,722.43339234]
[1741471816691,37.5162,2215.8,2215.7,719.32607849]
[1741471817391,40.4972,2215.8,2215.7,719.32607849]
[1741471817989,40.4972,2215.8,2215.7,714.32960385]
[1741471817990,36.4972,2215.8,2215.7,714.32960385]
[1741471818188,40.58746085,2215.8,2215.7,704.22702293]
[1741471818491,28.39236085,2215.8,2215.7,704.22702293]
[1741471821210,28.39236085,2215.8,2215.7,529.94930292]
[1741471822097,28.39236085,2215.8,2215.7,530.63730292]
[1741471822394,28.39236085,2215.8,2215.7,529.70383675]
[1741471823599,25.41136085,2215.8,2215.7,529.70383675]
[1741471824399,25.41136085,2215.8,2215.7,526.59670284]
[1741471828101,25.41136085,2215.8,2215.7,523.48957502]
[1741471828604,32.89736085,2215.8,2215.7,522.80157502]
[1741471832503,32.89736085,2215.8,2215.7,519.69442966]
[1741471833792,36.89736085,2215.8,2215.7,492.46676104]
[1741471833997,39.87836085,2215.8,2215.7,432.10262396]
[1741471834198,39.87836085,2215.8,2215.7,415.70947032]
[1741471834398,39.87836085,2215.8,2215.7,412.93919757]
[1741471834599,39.87836085,2215.8,2215.7,401.17096013]
[1741471834809,39.87836085,2215.8,2215.7,375.43070692]
[1741471835103,39.87836085,2215.8,2215.7,374.92230693]
[1741471835299,39.87836085,2215.8,2215.7,361.74857922]
[1741471835603,39.87836085,2215.8,2215.7,360.84467922]
[1741471835801,39.87836085,2215.8,2215.7,359.94077922]
[1741471836000,39.87836085,2215.8,2215.7,354.87829485]
[1741471836306,40.59477433,2215.8,2215.7,352.40449485]
[1741471836506,40.59477433,2215.8,2215.7,352.00089485]
[1741471836708,40.59477433,2215.8,2215.7,335.47398014]
[1741471837005,40.59477433,2215.8,2215.7,335.00188014]
[1741471837206,40.59477433,2215.8,2215.7,334.60608014]
[1741471837394,40.6733771,2215.8,2215.7,326.80977204]
[1741471838305,40.6733771,2215.8,2215.7,326.43950955]
[1741471838808,40.6733771,2215.8,2215.7,324.65450955]
[1741471839108,40.6733771,2215.8,2215.7,323.90460955]
[1741471839701,40.6733771,2215.8,2215.7,311.25265004]
[1741471840509,40.6733771,2215.8,2215.7,303.45634194]
[1741471841099,40.6733771,2215.8,2215.7,300.34845878]
[1741471841297,40.6733771,2215.8,2215.7,297.37005878]
[1741471841500,40.6733771,2215.8,2215.7,287.81955879]
[1741471841897,40.6733771,2215.8,2215.7,286.00355879]
[1741471842807,40.6733771,2215.8,2215.7,275.89443022]
[1741471843014,40.6733771,2215.8,2215.7,203.99100374]
[1741471843308,40.6733771,2215.8,2215.7,164.5508427]
[1741471843508,40.6733771,2215.8,2215.7,148.72891623]
[1741471843702,40.6733771,2215.8,2215.7,132.89757976]
[1741471843900,40.6733771,2215.8,2215.7,107.80589326]
[1741471844103,40.6733771,2215.8,2215.7,97.38955573]
[1741471844305,39.57796362,2215.8,2215.7,93.74856907]
[1741471844604,39.57796362,2215.8,2215.7,62.10471613]
[1741471844803,39.57796362,2215.8,2215.7,42.60979388]
[1741471845003,39.57796362,2215.8,2215.7,27.34579388]
[1741471845205,39.57796362,2215.8,2215.7,21.10245846]
[1741471845404,39.57796362,2215.8,2215.7,20.46025846]
[1741471845710,39.57796362,2215.8,2214.5,1.3911]
[1741471845910,3.2078,2214.7,2214.5,1.3911]
[1741471846212,1.93,2214.6,2214.5,1.3911]
[1741471847513,1.93,2214.6,2214.5,5.3911]
[1741471848010,1.93,2214.6,2214.5,1.3911]
[1741471848208,1.93,2214.6,2214.5,5.3911]
[1741471848413,1.93,2214.6,2214.5,1.3911]
[1741471848609,1.93,2214.6,2214.5,5.3911]
[1741471849014,1.93,2214.6,2214.5,1.3911]
[1741471849313,1.93,2214.6,2213.5,3.52721]
[1741471849314,16.397,2214.6,2213.2,3.2078]
[1741471849503,3.2078,2213.3,2212.8,0.7053635]
[1741471849704,3.2078,2212.9,2212.8,0.7053635]
[1741471849916,3.2078,2212.9,2212.4,1.4123]
[1741471850207,3.2078,2212.5,2211.2,17.38057615]
[1741471850408,1.948,2212.4,2211.8,3.2078]
[1741471850609,0.00677033,2212.1,2211.9,1.42]
[1741471850812,1.965,2212.0,2211.9,1.42]
[1741471852217,1.965,2212.0,2211.6,3.3e-07]
[1741471852402,3.2078,2211.7,2211.6,3.3e-07]
[1741471852601,3.2078,2211.7,2211.2,14.09612648]
[1741471852813,3.2078,2211.3,2211.2,14.09612648]
[1741471853012,3.2078,2211.3,2210.9,0.6941]
[1741471853308,3.2078,2211.0,2210.6,0.36719663]
[1741471853612,1.981,2210.9,2210.0,3.2078]
[1741471853910,3.2078,2210.7,2210.6,0.0067858]
[1741471854414,3.2078,2210.7,2210.6,5.8e-06]
[1741471854612,1.981,2210.9,2210.6,4.0000058]
[1741471854806,2.003,2210.8,2210.7,3.2078]
[1741471855005,2.003,2210.8,2210.6,5.8e-06]